[Event "17th Memorial Lezcano Montalvo 2025"]
[Site "Gran Canaria"]
[Date "2025.04.14"]
[Round "3.18"]
[White "Castro Miguelez, Jose"]
[Black "Ambartsumova, Karina"]
[Result "0-1"]
[Annotator "RC"]
[ECO "C41"]
[WhiteElo "1846"]
[BlackElo "2405"]
[PlyCount "120"]
[EventDate "2025.04.13"]
[EventType "swiss"]
[EventCountry "ESP"]
[SourceTitle "playchess.com"]
[Source "ChessBase"]
[SourceQuality "1"]
[TimeControl "5400+30"]

1. e4 {[%emt 0:00:02]} e5 {[%emt 0:00:39]} 2. Nf3 {[%emt 0:00:05]} d6 {[%emt 0:00:24]} 3. d4 {[%emt 0:00:09]} exd4 {[%emt 0:00:19]} 4. Nxd4 {[%emt 0:00:08]} Nf6 {[%emt 0:00:24]} 5. Nc3 {[%emt 0:00:07]} Be7 {[%emt 0:00:20]} 6. g3 {[%emt 0:03:06]} O-O {[%emt 0:02:16]} 7. Bg2 {[%emt 0:00:14]} Re8 {[%emt 0:02:22]} 8. O-O {[%emt 0:00:08]} c6 {[%emt 0:02:07]} 9. a4 {[%emt 0:04:19]} a5 {[%emt 0:01:15]} 10. h3 {[%emt 0:06:04]} Na6 {[%emt 0:04:31]} 11. b3 {[%emt 0:06:22]} Bf8 {[%emt 0:06:20]} 12. Bb2 {[%emt 0:01:20]} Nc5 {[%emt 0:06:19]} 13. Re1 {[%emt 0:00:14]} g6 {[%emt 0:07:03]} 14. Qd2 {[%emt 0:04:00]} Bg7 {[%emt 0:03:53]} 15. Rad1 {[%emt 0:01:03]} Qb6 {[%emt 0:00:13]} 16. Kh2 {[%emt 0:04:53]} Be6 {[%emt 0:10:47]} 17. Ba1 {[%emt 0:08:13]} Rad8 {[%emt 0:02:08]} 18. f4 {[%emt 0:03:53]} Bc8 {[%emt 0:16:06]} 19. Bf3 {[%emt 0:12:12]} d5 {[%emt 0:04:36]} 20. exd5 {[%emt 0:03:34]} Rxe1 {[%emt 0:03:56]} 21. Rxe1 {[%emt 0:00:10]} cxd5 {[%emt 0:02:03]} 22. Ncb5 {[%emt 0:09:40]} Nce4 {[%emt 0:01:51]} 23. Qd3 {[%emt 0:01:52]} h5 {[%emt 0:00:44]} 24. Re2 {[%emt 0:02:17]} Bd7 {[%emt 0:03:38]} 25. c4 {[%emt 0:08:52]} dxc4 {[%emt 0:03:56]} 26. Qxc4 {[%emt 0:00:34]} Rc8 {[%emt 0:01:29]} 27. Qd3 {[%emt 0:00:29]} Nc5 {[%emt 0:00:16]} 28. Qd2 {[%emt 0:00:26]} Bxb5 {[%emt 0:04:02]} 29. axb5 {[%emt 0:00:07]} Rd8 {[%emt 0:01:08]} 30. Qa2 {[%emt 0:02:33]} h4 {[%emt 0:01:54]} 31. Bc3 {[%emt 0:02:50]} hxg3+ {[%emt 0:00:11]} 32. Kxg3 {[%emt 0:01:00]} Nd3 {[%emt 0:03:07]} 33. Qxa5 {[%emt 0:03:23]} Qxa5 {[%emt 0:01:55]} 34. Bxa5 {[%emt 0:00:06]} Rxd4 {[%emt 0:00:15]} 35. Bxb7 {[%emt 0:00:29]} Nxf4 {[%emt 0:01:06]} 36. Rc2 {[%emt 0:01:24]} N4d5 {[%emt 0:01:31]} 37. Rc8+ {[%emt 0:02:31]} Kh7 {[%emt 0:00:04]} 38. Rd8 {[%emt 0:00:15]} Rd3+ {[%emt 0:00:28]} 39. Kh2 {[%emt 0:00:17]} Rxb3 {[%emt 0:00:47]} 40. Bxd5 {[%emt 0:00:19]} Rxb5 {[%emt 0:00:03]} 41. Bxf7 {[%emt 0:01:34]} Rxa5 {[%emt 0:00:02]} 42. Rd3 {[%emt 0:00:33]} Ra7 {[%emt 0:00:18]} 43. Be6 {[%emt 0:00:35]} Re7 {[%emt 0:00:13]} 44. Bg4 {[%emt 0:00:12]} Nxg4+ {[%emt 0:00:25]} 45. hxg4 {[%emt 0:00:06]} Kh6 {[%emt 0:00:13]} 46. Kh3 {[%emt 0:01:07]} Kg5 {[%emt 0:00:07]} 47. Rd5+ {[%emt 0:01:41]} Re5 {[%emt 0:00:05]} 48. Rd6 {[%emt 0:00:11]} Re3+ {[%emt 0:00:11]} 49. Kg2 {[%emt 0:00:10]} Be5 {[%emt 0:00:04]} 50. Re6 {[%emt 0:00:16]} Bf4 {[%emt 0:00:14]} 51. Ra6 {[%emt 0:00:44]} Rd3 {[%emt 0:00:34]} 52. Kf2 {[%emt 0:00:31]} Rd6 {[%emt 0:00:07]} 53. Ra1 {[%emt 0:00:51]} Kxg4 {[%emt 0:00:07]} 54. Rg1+ {[%emt 0:00:05]} Kf5 {[%emt 0:00:01]} 55. Rb1 {[%emt 0:00:26]} g5 {[%emt 0:00:03]} 56. Rb5+ {[%emt 0:00:12]} Kg4 {[%emt 0:00:03]} 57. Rb1 {[%emt 0:00:16]} Rd2+ {[%emt 0:00:03]} 58. Kf1 {[%emt 0:00:38]} Kf3 {[%emt 0:00:13]} 59. Rb3+ {[%emt 0:00:12]} Be3 {[%emt 0:00:07]} 60. Ke1 {[%emt 0:00:22]} Rc2 {[%emt 0:00:12]} 0-1

[Event "17th Memorial Lezcano Montalvo 2025"]
[Site "Gran Canaria"]
[Date "2025.04.14"]
[Round "3.19"]
[White "Calzetta Ruiz, Monica"]
[Black "Roquero Redondo, Miguel"]
[Result "1-0"]
[Annotator "RC"]
[ECO "B33"]
[WhiteElo "2224"]
[BlackElo "2037"]
[PlyCount "67"]
[EventDate "2025.04.13"]
[EventType "swiss"]
[EventCountry "ESP"]
[SourceTitle "playchess.com"]
[Source "ChessBase"]
[SourceQuality "1"]
[TimeControl "5400+30"]

1. e4 {[%emt 0:00:02]} c5 {[%emt 0:00:16]} 2. Nf3 {[%emt 0:00:08]} Nc6 {[%emt 0:00:25]} 3. d4 {[%emt 0:00:08]} cxd4 {[%emt 0:00:06]} 4. Nxd4 {[%emt 0:00:05]} Nf6 {[%emt 0:00:13]} 5. Nc3 {[%emt 0:00:09]} e5 {[%emt 0:00:24]} 6. Ndb5 {[%emt 0:00:15]} d6 {[%emt 0:00:08]} 7. Bg5 {[%emt 0:00:20]} a6 {[%emt 0:00:23]} 8. Na3 {[%emt 0:00:07]} b5 {[%emt 0:00:07]} 9. Nd5 {[%emt 0:00:17]} Be7 {[%emt 0:00:09]} 10. Bxf6 {[%emt 0:00:23]} Bxf6 {[%emt 0:00:10]} 11. c4 {[%emt 0:03:24]} b4 {[%emt 0:00:26]} 12. Nc2 {[%emt 0:00:05]} O-O {[%emt 0:00:51]} 13. h4 {[%emt 0:00:49]} a5 {[%emt 0:19:56]} 14. g3 {[%emt 0:10:41]} Be6 {[%emt 0:12:08]} 15. Bh3 {[%emt 0:01:20]} Rb8 {[%emt 0:05:20]} 16. b3 {[%emt 0:02:01]} Be7 {[%emt 0:03:24]} 17. Kf1 {[%emt 0:01:55]} Qd7 {[%emt 0:01:38]} 18. Kg2 {[%emt 0:04:37]} Bd8 {[%emt 0:05:13]} 19. Qd3 {[%emt 0:08:53]} Ne7 {[%emt 0:05:35]} 20. Nce3 {[%emt 0:04:32]} Bb6 {[%emt 0:05:02]} 21. Nxb6 {[%emt 0:13:00]} Rxb6 {[%emt 0:00:07]} 22. Rad1 {[%emt 0:00:04]} Qc7 {[%emt 0:05:24]} 23. Rd2 {[%emt 0:01:38]} Qc5 {[%emt 0:02:25]} 24. h5 {[%emt 0:02:12]} h6 {[%emt 0:01:33]} 25. Rhd1 {[%emt 0:16:42]} Rd8 {[%emt 0:03:25]} 26. Qe2 {[%emt 0:01:02]} Nc6 {[%emt 0:10:20]} 27. Bxe6 {[%emt 0:05:15]} fxe6 {[%emt 0:00:06]} 28. Qg4 {[%emt 0:00:05]} Nd4 {[%emt 0:00:31]} 29. Nc2 {[%emt 0:00:16]} Re8 {[%emt 0:01:59]} 30. Nxd4 {[%emt 0:00:15]} exd4 {[%emt 0:00:08]} 31. Rxd4 {[%emt 0:00:11]} Qe5 {[%emt 0:01:23]} 32. Qg6 {[%emt 0:02:42]} Re7 {[%emt 0:01:26]} 33. c5 {[%emt 0:01:45]} Rb5 {[%emt 0:01:49]} 34. cxd6 {[%emt 0:00:21]} 1-0

[Event "17th Memorial Lezcano Montalvo 2025"]
[Site "Gran Canaria"]
[Date "2025.04.14"]
[Round "3.20"]
[White "Estremera Panos, Sergio"]
[Black "Perez Betancor, Jose Luis"]
[Result "1-0"]
[Annotator "RC"]
[ECO "A84"]
[WhiteElo "2195"]
[BlackElo "1782"]
[PlyCount "33"]
[EventDate "2025.04.13"]
[EventType "swiss"]
[EventCountry "ESP"]
[SourceTitle "playchess.com"]
[Source "ChessBase"]
[SourceQuality "1"]
[TimeControl "5400+30"]

1. d4 {[%emt 0:00:03]} f5 {[%emt 0:03:08]} 2. Nf3 {[%emt 0:01:27]} e6 {[%emt 0:00:51]} 3. g3 {[%emt 0:01:21]} b6 {[%emt 0:01:43]} 4. Bg2 {[%emt 0:00:33]} Bb7 {[%emt 0:00:49]} 5. O-O {[%emt 0:00:09]} Nf6 {[%emt 0:01:08]} 6. c4 {[%emt 0:00:07]} Be7 {[%emt 0:05:05]} 7. Nc3 {[%emt 0:01:22]} Ne4 {[%emt 0:06:29]} 8. d5 {[%emt 0:00:53]} Nxc3 {[%emt 0:01:53]} 9. bxc3 {[%emt 0:00:10]} Na6 {[%emt 0:08:05]} 10. Nd4 {[%emt 0:02:20]} Nc5 {[%emt 0:05:28]} 11. dxe6 {[%emt 0:08:29]} Bxg2 {[%emt 0:02:59]} 12. exd7+ {[%emt 0:00:26]} Qxd7 {[%emt 0:00:21]} 13. Kxg2 {[%emt 0:00:07]} O-O-O {[%emt 0:04:46]} 14. Ba3 {[%emt 0:03:06]} g6 {[%emt 0:04:37]} 15. e3 {[%emt 0:00:48]} h5 {[%emt 0:05:37]} 16. Bxc5 {[%emt 0:04:21]} Bxc5 {[%emt 0:02:13]} 17. Qf3 {[%emt 0:01:12]} 1-0

[Event "17th Memorial Lezcano Montalvo 2025"]
[Site "Gran Canaria"]
[Date "2025.04.14"]
[Round "3.21"]
[White "Macias Reyes, Jose Luis"]
[Black "Rodriguez Lopez, David"]
[Result "0-1"]
[Annotator "RC"]
[ECO "D02"]
[WhiteElo "1674"]
[BlackElo "2182"]
[PlyCount "34"]
[EventDate "2025.04.13"]
[EventType "swiss"]
[EventCountry "ESP"]
[SourceTitle "playchess.com"]
[Source "ChessBase"]
[SourceQuality "1"]
[TimeControl "5400+30"]

1. d4 {[%emt 0:00:01]} Nf6 {[%emt 0:00:10]} 2. Bf4 {[%emt 0:00:09]} e6 {[%emt 0:00:10]} 3. e3 {[%emt 0:00:10]} c5 {[%emt 0:00:12]} 4. Nf3 {[%emt 0:01:07]} d5 {[%emt 0:00:19]} 5. Nbd2 {[%emt 0:00:32]} Nc6 {[%emt 0:00:24]} 6. c3 {[%emt 0:00:30]} Bd6 {[%emt 0:00:27]} 7. Bg3 {[%emt 0:00:56]} O-O {[%emt 0:00:17]} 8. Bd3 {[%emt 0:00:28]} b6 {[%emt 0:00:08]} 9. e4 {[%emt 0:02:42]} Be7 {[%emt 0:00:18]} 10. e5 {[%emt 0:02:37]} Nh5 {[%emt 0:00:23]} 11. Qe2 {[%emt 0:04:34]} Bb7 {[%emt 0:01:47]} 12. Qe3 {[%emt 0:02:04]} Rc8 {[%emt 0:03:03]} 13. Bf4 {[%emt 0:03:18]} cxd4 {[%emt 0:04:59]} 14. cxd4 {[%emt 0:01:40]} Nxf4 {[%emt 0:00:34]} 15. Qxf4 {[%emt 1:17:12]} Nb4 {[%emt 0:00:18]} 16. Qe3 {[%emt 0:00:00]} Ba6 {[%emt 0:00:56]} 17. Bb1 {[%emt 0:00:00]} Rc1# {[%emt 0:00:10]} 0-1

[Event "17th Memorial Lezcano Montalvo 2025"]
[Site "Gran Canaria"]
[Date "2025.04.14"]
[Round "3.22"]
[White "Krilovs, Nikolajs"]
[Black "De La Cruz Perez, Carlos"]
[Result "1-0"]
[Annotator "NA RC"]
[ECO "E06"]
[WhiteElo "2112"]
[BlackElo "1835"]
[PlyCount "47"]
[EventDate "2025.04.13"]
[EventType "swiss"]
[EventCountry "ESP"]
[SourceTitle "playchess.com"]
[Source "ChessBase"]
[SourceQuality "1"]
[TimeControl "5400+30"]

1. Nf3 {[%emt 0:00:04]} Nf6 {[%emt 0:00:33]} 2. d4 {[%emt 0:00:08]} d5 {[%emt 0:00:09]} 3. c4 {[%emt 0:00:09]} e6 {[%emt 0:00:08]} 4. g3 {[%emt 0:00:10]} Be7 {[%emt 0:00:17]} 5. Bg2 {[%emt 0:00:10]} O-O {[%emt 0:00:11]} 6. Qc2 {[%emt 0:00:07]} a6 {[%emt 0:01:54]} 7. cxd5 {[%emt 0:03:19]} exd5 {[%emt 0:00:17]} 8. O-O {[%emt 0:00:18]} c6 {[%emt 0:01:32]} 9. Ne5 {[%emt 0:02:23]} Re8 {[%emt 0:07:11]} 10. Nc3 {[%emt 0:03:47]} Bd6 {[%emt 0:05:17]} 11. f4 {[%emt 0:02:12]} g6 {[%emt 0:23:24]} 12. h3 {[%emt 0:04:12]} Qb6 {[%emt 0:03:22]} 13. Be3 {[%emt 0:03:47]} Bf5 {[%emt 0:01:16]} 14. Qc1 {[%emt 0:01:27]} Qd8 {[%emt 0:07:56]} 15. g4 {[%emt 0:04:05]} Be4 {[%emt 0:00:45]} 16. Bxe4 {[%emt 0:02:18]} Nxe4 {[%emt 0:00:48]} 17. Nxe4 {[%emt 0:00:08]} dxe4 {[%emt 0:00:04]} 18. g5 {[%emt 0:01:31]} Qc8 {[%emt 0:07:54]} 19. Ng4 {[%emt 0:03:27]} Rf8 {[%emt 0:13:21]} 20. d5 {[%emt 0:06:32]} f6 {[%emt 0:06:21]} 21. Qc3 {[%emt 0:02:47]} Nd7 {[%emt 0:01:42]} 22. dxc6 {[%emt 0:00:43]} Qxc6 {[%emt 0:00:31]} 23. Qxc6 {[%emt 0:00:29]} bxc6 {[%emt 0:00:05]} 24. Rad1 {[%emt 0:00:20]} 1-0

[Event "17th Memorial Lezcano Montalvo 2025"]
[Site "Gran Canaria"]
[Date "2025.04.14"]
[Round "3.23"]
[White "Maerevoet, Sim"]
[Black "Almeida Cubas, Mirella"]
[Result "1-0"]
[Annotator "RC"]
[ECO "A43"]
[WhiteElo "2451"]
[BlackElo "1824"]
[PlyCount "59"]
[EventDate "2025.04.13"]
[EventType "swiss"]
[EventCountry "ESP"]
[SourceTitle "playchess.com"]
[Source "ChessBase"]
[SourceQuality "1"]
[TimeControl "5400+30"]

1. d4 {[%emt 0:00:03]} c5 {[%emt 0:04:27]} 2. d5 {[%emt 0:00:22]} g6 {[%emt 0:01:25]} 3. e4 {[%emt 0:00:37]} d6 {[%emt 0:02:04]} 4. Nc3 {[%emt 0:01:02]} Bg7 {[%emt 0:01:09]} 5. Nf3 {[%emt 0:01:38]} Nf6 {[%emt 0:03:06]} 6. Be2 {[%emt 0:00:06]} O-O {[%emt 0:01:45]} 7. O-O {[%emt 0:00:22]} Bg4 {[%emt 0:03:52]} 8. a4 {[%emt 0:01:48]} Bxf3 {[%emt 0:03:43]} 9. Bxf3 {[%emt 0:00:07]} Na6 {[%emt 0:01:20]} 10. Bf4 {[%emt 0:00:57]} Nd7 {[%emt 0:02:46]} 11. Qd2 {[%emt 0:01:15]} Nc7 {[%emt 0:02:29]} 12. Be2 {[%emt 0:05:00]} b6 {[%emt 0:07:55]} 13. h4 {[%emt 0:03:42]} a6 {[%emt 0:03:19]} 14. h5 {[%emt 0:01:00]} Rb8 {[%emt 0:05:14]} 15. h6 {[%emt 0:04:53]} Bh8 {[%emt 0:02:32]} 16. Rfb1 {[%emt 0:03:44]} b5 {[%emt 0:11:10]} 17. axb5 {[%emt 0:01:01]} axb5 {[%emt 0:00:52]} 18. b4 {[%emt 0:01:54]} c4 {[%emt 0:14:44]} 19. Ra5 {[%emt 0:02:26]} Ne5 {[%emt 0:04:24]} 20. Be3 {[%emt 0:07:20]} Qd7 {[%emt 0:03:59]} 21. Bd4 {[%emt 0:01:09]} Ra8 {[%emt 0:01:51]} 22. Rba1 {[%emt 0:05:20]} Rxa5 {[%emt 0:01:28]} 23. Rxa5 {[%emt 0:00:20]} Ra8 {[%emt 0:01:11]} 24. Rxa8+ {[%emt 0:00:41]} Nxa8 {[%emt 0:00:01]} 25. f4 {[%emt 0:00:24]} Ng4 {[%emt 0:02:02]} 26. Bxg4 {[%emt 0:00:09]} Qxg4 {[%emt 0:01:45]} 27. Bxh8 {[%emt 0:00:11]} Kxh8 {[%emt 0:03:52]} 28. Qd4+ {[%emt 0:00:11]} f6 {[%emt 0:01:41]} 29. Qa7 {[%emt 0:00:07]} Qc8 {[%emt 0:04:52]} 30. Qxe7 {[%emt 0:00:10]} 1-0

[Event "17th Memorial Lezcano Montalvo 2025"]
[Site "Gran Canaria"]
[Date "2025.04.14"]
[Round "3.24"]
[White "Sanchez Montesdeoca, Isaac"]
[Black "Gomez Ledo, Roberto Carlos"]
[Result "0-1"]
[Annotator "RC"]
[ECO "A47"]
[WhiteElo "1807"]
[BlackElo "2396"]
[PlyCount "76"]
[EventDate "2025.04.13"]
[EventType "swiss"]
[EventCountry "ESP"]
[SourceTitle "playchess.com"]
[Source "ChessBase"]
[SourceQuality "1"]
[TimeControl "5400+30"]

1. Nf3 {[%emt 0:00:02]} Nf6 {[%emt 0:00:18]} 2. d4 {[%emt 0:00:07]} e6 {[%emt 0:00:52]} 3. e3 {[%emt 0:00:21]} b6 {[%emt 0:00:35]} 4. a3 {[%emt 0:03:21]} Bb7 {[%emt 0:02:31]} 5. b3 {[%emt 0:00:20]} Be7 {[%emt 0:01:23]} 6. Bb2 {[%emt 0:00:26]} O-O {[%emt 0:00:14]} 7. Bd3 {[%emt 0:00:08]} Ne4 {[%emt 0:02:59]} 8. Nbd2 {[%emt 0:00:25]} f5 {[%emt 0:00:40]} 9. O-O {[%emt 0:00:41]} d6 {[%emt 0:01:24]} 10. Bc4 {[%emt 0:14:26]} Rf6 {[%emt 0:03:33]} 11. Nxe4 {[%emt 0:01:40]} fxe4 {[%emt 0:01:01]} 12. Ng5 {[%emt 0:05:08]} d5 {[%emt 0:03:10]} 13. Be2 {[%emt 0:09:23]} Rh6 {[%emt 0:00:57]} 14. Nh3 {[%emt 0:04:16]} Bd6 {[%emt 0:00:46]} 15. f4 {[%emt 0:06:31]} exf3 {[%emt 0:01:02]} 16. Rxf3 {[%emt 0:01:15]} Nd7 {[%emt 0:00:50]} 17. Bc3 {[%emt 0:04:45]} Nf6 {[%emt 0:03:43]} 18. Be1 {[%emt 0:02:07]} Ne4 {[%emt 0:00:31]} 19. Nf4 {[%emt 0:01:18]} e5 {[%emt 0:08:35]} 20. Nh3 {[%emt 0:07:09]} Bc8 {[%emt 0:05:50]} 21. c4 {[%emt 0:01:11]} Bxh3 {[%emt 0:05:49]} 22. gxh3 {[%emt 0:05:33]} Ng5 {[%emt 0:10:51]} 23. dxe5 {[%emt 0:06:40]} Bxe5 {[%emt 0:00:43]} 24. Rf5 {[%emt 0:01:15]} Rg6 {[%emt 0:09:49]} 25. Bg3 {[%emt 0:08:16]} Bxa1 {[%emt 0:00:52]} 26. Qxa1 {[%emt 0:00:03]} dxc4 {[%emt 0:00:29]} 27. Bxc4+ {[%emt 0:01:00]} Kh8 {[%emt 0:00:08]} 28. Bd5 {[%emt 0:03:09]} c6 {[%emt 0:01:53]} 29. Bg2 {[%emt 0:00:38]} Qd7 {[%emt 0:02:15]} 30. Qf1 {[%emt 0:01:36]} h6 {[%emt 0:00:43]} 31. Rf8+ {[%emt 0:01:32]} Rxf8 {[%emt 0:00:14]} 32. Qxf8+ {[%emt 0:00:04]} Kh7 {[%emt 0:00:11]} 33. Qf1 {[%emt 0:00:52]} Rf6 {[%emt 0:00:50]} 34. Qb1+ {[%emt 0:00:47]} Kh8 {[%emt 0:00:25]} 35. h4 {[%emt 0:02:25]} Nh3+ {[%emt 0:01:40]} 36. Kh1 {[%emt 0:00:41]} Nf2+ {[%emt 0:00:42]} 37. Kg1 {[%emt 0:00:50]} Qd2 {[%emt 0:00:16]} 38. Bf4 {[%emt 0:02:07]} Nd3 {[%emt 0:00:24]} 0-1

[Event "17th Memorial Lezcano Montalvo 2025"]
[Site "Gran Canaria"]
[Date "2025.04.14"]
[Round "3.25"]
[White "Garcia Padron, Jose"]
[Black "Juan Miguel, Javier"]
[Result "1-0"]
[Annotator "RC"]
[ECO "D24"]
[WhiteElo "2355"]
[BlackElo "1803"]
[PlyCount "65"]
[EventDate "2025.04.13"]
[EventType "swiss"]
[EventCountry "ESP"]
[SourceTitle "playchess.com"]
[Source "ChessBase"]
[SourceQuality "1"]
[TimeControl "5400+30"]

1. d4 {[%emt 0:04:12]} d5 {[%emt 0:00:14]} 2. c4 {[%emt 0:00:05]} dxc4 {[%emt 0:00:21]} 3. Nf3 {[%emt 0:00:24]} Nf6 {[%emt 0:00:20]} 4. Nc3 {[%emt 0:00:05]} e6 {[%emt 0:00:21]} 5. e4 {[%emt 0:00:07]} a6 {[%emt 0:00:41]} 6. Bxc4 {[%emt 0:02:39]} b5 {[%emt 0:02:48]} 7. Bd3 {[%emt 0:00:13]} c5 {[%emt 0:01:13]} 8. dxc5 {[%emt 0:00:19]} Bxc5 {[%emt 0:00:46]} 9. O-O {[%emt 0:00:19]} Bb7 {[%emt 0:01:46]} 10. e5 {[%emt 0:01:50]} Nd5 {[%emt 0:02:37]} 11. Ne4 {[%emt 0:00:08]} Be7 {[%emt 0:00:19]} 12. Bg5 {[%emt 0:00:21]} O-O {[%emt 0:02:56]} 13. Rc1 {[%emt 0:08:53]} h6 {[%emt 0:04:22]} 14. Bxe7 {[%emt 0:00:54]} Qxe7 {[%emt 0:00:24]} 15. Bb1 {[%emt 0:00:23]} Rd8 {[%emt 0:03:33]} 16. Qd3 {[%emt 0:04:55]} g6 {[%emt 0:03:07]} 17. Qd2 {[%emt 0:03:15]} Kg7 {[%emt 0:00:57]} 18. Nd6 {[%emt 0:04:00]} Nc6 {[%emt 0:02:23]} 19. Qe2 {[%emt 0:01:03]} Kh7 {[%emt 0:06:57]} 20. Ne4 {[%emt 0:01:38]} Rab8 {[%emt 0:08:55]} 21. h4 {[%emt 0:00:11]} Kg7 {[%emt 0:01:03]} 22. g3 {[%emt 0:00:49]} Na7 {[%emt 0:02:19]} 23. h5 {[%emt 0:03:46]} g5 {[%emt 0:04:31]} 24. Rfd1 {[%emt 0:01:19]} Rbc8 {[%emt 0:01:47]} 25. Rxc8 {[%emt 0:03:43]} Rxc8 {[%emt 0:03:09]} 26. Nd6 {[%emt 0:00:33]} Rh8 {[%emt 0:03:33]} 27. Nd4 {[%emt 0:00:45]} Qd7 {[%emt 0:02:34]} 28. Be4 {[%emt 0:14:32]} Nc6 {[%emt 0:07:55]} 29. N4f5+ {[%emt 0:11:15]} exf5 {[%emt 0:07:07]} 30. Nxf5+ {[%emt 0:02:29]} Kf8 {[%emt 0:00:32]} 31. Rxd5 {[%emt 0:00:08]} Qc7 {[%emt 0:05:25]} 32. Qc2 {[%emt 0:03:20]} Qb6 {[%emt 0:03:26]} 33. Rd6 {[%emt 0:28:27]} 1-0

[Event "17th Memorial Lezcano Montalvo 2025"]
[Site "Gran Canaria"]
[Date "2025.04.14"]
[Round "3.26"]
[White "Oramas Medina, Miguel"]
[Black "Barlov, Dragan"]
[Result "1-0"]
[Annotator "RC"]
[ECO "B46"]
[WhiteElo "1796"]
[BlackElo "2351"]
[PlyCount "90"]
[EventDate "2025.04.13"]
[EventType "swiss"]
[EventCountry "ESP"]
[SourceTitle "playchess.com"]
[Source "ChessBase"]
[SourceQuality "1"]
[TimeControl "5400+30"]

1. e4 {[%emt 0:00:08]} c5 {[%emt 0:01:00]} 2. Nf3 {[%emt 0:00:06]} a6 {[%emt 0:00:08]} 3. Nc3 {[%emt 0:00:07]} e6 {[%emt 0:00:11]} 4. d4 {[%emt 0:00:23]} cxd4 {[%emt 0:00:08]} 5. Nxd4 {[%emt 0:00:05]} Qc7 {[%emt 0:00:13]} 6. Bd3 {[%emt 0:00:11]} Nf6 {[%emt 0:01:10]} 7. Qe2 {[%emt 0:00:07]} d6 {[%emt 0:00:37]} 8. f4 {[%emt 0:00:10]} Nc6 {[%emt 0:00:55]} 9. Nxc6 {[%emt 0:06:23]} bxc6 {[%emt 0:00:05]} 10. O-O {[%emt 0:01:58]} e5 {[%emt 0:06:33]} 11. f5 {[%emt 0:09:46]} Be7 {[%emt 0:02:39]} 12. Kh1 {[%emt 0:01:04]} h6 {[%emt 0:06:57]} 13. Be3 {[%emt 0:09:02]} d5 {[%emt 0:10:39]} 14. Bf2 {[%emt 0:04:00]} Bb7 {[%emt 0:14:00]} 15. Rae1 {[%emt 0:11:38]} O-O {[%emt 0:09:03]} 16. exd5 {[%emt 0:06:50]} cxd5 {[%emt 0:02:46]} 17. Bg3 {[%emt 0:00:16]} Bd6 {[%emt 0:04:48]} 18. Bxe5 {[%emt 0:01:23]} Rfe8 {[%emt 0:01:59]} 19. Bxd6 {[%emt 0:00:12]} Qxd6 {[%emt 0:00:06]} 20. Qd2 {[%emt 0:04:39]} Ng4 {[%emt 0:05:21]} 21. Rxe8+ {[%emt 0:08:16]} Rxe8 {[%emt 0:00:48]} 22. Qf4 {[%emt 0:00:33]} Qxf4 {[%emt 0:00:09]} 23. Rxf4 {[%emt 0:00:06]} Re1+ {[%emt 0:00:09]} 24. Rf1 {[%emt 0:00:10]} Rxf1+ {[%emt 0:13:39]} 25. Bxf1 {[%emt 0:35:27]} Ne3 {[%emt 0:08:30]} 26. Bd3 {[%emt 0:00:00]} d4 {[%emt 0:02:49]} 27. Ne2 {[%emt 0:00:00]} Nxg2 {[%emt 0:02:14]} 28. Kg1 {[%emt 0:00:00]} Ne1 {[%emt 0:02:14]} 29. Nxd4 {[%emt 0:00:00]} Nxd3 {[%emt 0:00:26]} 30. cxd3 {[%emt 0:00:00]} Kf8 {[%emt 0:00:25]} 31. Kf2 {[%emt 0:00:00]} Ke7 {[%emt 0:00:08]} 32. Ke3 {[%emt 0:00:00]} Kd6 {[%emt 0:01:20]} 33. f6 {[%emt 0:00:00]} g6 {[%emt 0:01:05]} 34. Kf4 {[%emt 0:00:00]} Bd5 {[%emt 0:01:07]} 35. a3 {[%emt 0:00:00]} Bg2 {[%emt 0:01:44]} 36. b4 {[%emt 0:00:00]} Bb7 {[%emt 0:01:07]} 37. Nb3 {[%emt 0:00:00]} Kd5 {[%emt 0:00:25]} 38. Nc5 {[%emt 0:00:00]} Bc8 {[%emt 0:00:07]} 39. h4 {[%emt 0:00:00]} Kd4 {[%emt 0:01:22]} 40. Na4 {[%emt 0:02:35]} Kxd3 {[%emt 0:00:49]} 41. Ke5 {[%emt 0:05:25]} Ke3 42. Kd5 {[%emt 0:00:30]} Kd3 {[%emt 0:01:35]} 43. Ke5 Ke3 {[%emt 0:00:30]} 44. Kd6 {[%emt 0:01:00]} g5 45. hxg5 hxg5 1-0

[Event "17th Memorial Lezcano Montalvo 2025"]
[Site "Gran Canaria"]
[Date "2025.04.14"]
[Round "3.27"]
[White "Garcia Padron, Juan"]
[Black "Reinoso Andre, Lazaro Javier"]
[Result "1-0"]
[Annotator "RC"]
[ECO "B30"]
[WhiteElo "2155"]
[BlackElo "1796"]
[PlyCount "56"]
[EventDate "2025.04.13"]
[EventType "swiss"]
[EventCountry "ESP"]
[SourceTitle "playchess.com"]
[Source "ChessBase"]
[SourceQuality "1"]
[TimeControl "5400+30"]

1. e4 {[%emt 0:00:04]} c5 {[%emt 0:00:04]} 2. Nf3 {[%emt 0:00:17]} Nc6 {[%emt 0:00:07]} 3. Bb5 {[%emt 0:00:10]} e6 {[%emt 0:00:09]} 4. Bxc6 {[%emt 0:00:07]} bxc6 {[%emt 0:00:10]} 5. O-O {[%emt 0:00:26]} g6 {[%emt 0:01:50]} 6. d4 {[%emt 0:01:46]} Bg7 {[%emt 0:00:49]} 7. dxc5 {[%emt 0:00:24]} Rb8 {[%emt 0:00:35]} 8. Nc3 {[%emt 0:01:40]} Qe7 {[%emt 0:08:48]} 9. e5 {[%emt 0:02:59]} Qxc5 {[%emt 0:01:56]} 10. Ne4 {[%emt 0:00:09]} Qd5 {[%emt 0:01:15]} 11. Nd6+ {[%emt 0:00:14]} Kf8 {[%emt 0:00:16]} 12. Qe2 {[%emt 0:00:35]} Ne7 {[%emt 1:20:31]} 13. c4 {[%emt 0:03:49]} Ba6 {[%emt 0:00:00]} 14. b3 {[%emt 0:03:55]} Nf5 {[%emt 0:00:00]} 15. Ba3 {[%emt 0:01:20]} Kg8 {[%emt 0:00:00]} 16. Qe1 {[%emt 0:04:08]} Qd3 {[%emt 0:00:00]} 17. Qa5 {[%emt 0:04:30]} Nd4 {[%emt 0:00:00]} 18. Ng5 {[%emt 0:15:20]} h6 {[%emt 0:00:00]} 19. Rad1 {[%emt 0:01:18]} Qc3 {[%emt 0:00:00]} 20. Qc7 {[%emt 0:00:27]} Rf8 {[%emt 0:00:00]} 21. Ngxf7 {[%emt 0:02:05]} Nf3+ {[%emt 0:00:00]} 22. gxf3 {[%emt 0:11:30]} Qxf3 {[%emt 0:00:00]} 23. Rd4 {[%emt 0:00:09]} h5 {[%emt 0:00:00]} 24. Ng5 {[%emt 0:06:46]} Qc3 {[%emt 0:05:26]} 25. Qxd7 {[%emt 0:00:40]} Bxe5 {[%emt 0:00:30]} 26. Qxe6+ {[%emt 0:00:16]} Kg7 {[%emt 0:00:11]} 27. Qxe5+ {[%emt 0:00:19]} Kg8 {[%emt 0:00:40]} 28. Nde4 {[%emt 0:00:40]} Qe3 {[%emt 0:01:13]} 1-0